{"text_format":"3","workbook":"xlsx","n_sheets":4,"sheets":["OBIETTIVI","DIETA","ESERCIZI","Calcoli grafico"],"not_rendered":{"charts":2,"defined_names":19},"read":"whole","date_system":"1900"}

{"sheet":"OBIETTIVI","index":0,"n_rows":16,"n_cols":11,"rows_kept":16,"merged":[[2,1,3,1],[7,1,8,1]]}
[null,{"$f":"TODAY()","v":"2017-05-04"},"OBIETTIVI",{"$nulls":6},"Esercizi","Dietaa"]
[null,"DATA DI INIZIO","DIARIO PER DIETA ED ESERCIZI"]
[null,{"$f":"DataInizio+121","v":"2017-09-02"},"ANALISI NUTRIZIONALE"]
[]
[null,"DATA DI FINE"]
[null,{"v":100,"d":"100.00"}]
[null,"PESO INIZIALE"]
[null,{"v":80,"d":"80.00"},"ANALISI ESERCIZI"]
[]
[null,"PESO FINALE"]
[null,{"$f":"PesoIniziale-PesoFinale","v":20}]
[null,"OBIETTIVO DI PERDITA"]
[null,{"$f":"DataFine-DataInizio","v":121}]
[null,"GIORNI PER LA PERDITA"]
[null,{"$f":"ObiettivoPeso/B13","v":{"v":0.1652892561983471,"d":"0.17"}}]
[null,"PERDITA GIORNALIERA"]

{"sheet":"DIETA","index":1,"n_rows":19,"n_cols":9,"rows_kept":19}
[null,"DIETA",{"$nulls":4},"Obiettivi","Esercizi"]
[null,{"$f":"Sottotitolo","v":"DIARIO PER DIETA ED ESERCIZI"}]
[null,"DATA","ORA","DESCRIZIONE","CALORIE","CARBOIDRATI","PROTEINE","GRASSI","NOTE"]
[null,{"$f":"DataInizio","v":"2017-05-04"},"07:00:00","Caffè",1,0,0,0,"Caffè del mattino"]
[null,{"$f":"DataInizio","v":"2017-05-04"},"08:00:00","Ciambella salata",10,10,2,10,"Colazione leggera"]
[null,{"$f":"DataInizio","v":"2017-05-04"},"12:00:00","Pranzo",283,46,18,{"v":3.5,"d":"4"},"Tramezzino al tacchino"]
[null,{"$f":"DataInizio","v":"2017-05-04"},"19:00:00","Cena",500,42,35,25,"Crocchette di patate"]
[null,{"$f":"DataInizio+1","v":"2017-05-05"},"07:00:00","Caffè",1,0,0,0,"Caffè del mattino"]
[null,{"$f":"DataInizio+1","v":"2017-05-05"},"08:00:00","Pane tostato",10,10,2,10,"Colazione leggera"]
[null,{"$f":"DataInizio+1","v":"2017-05-05"},"12:00:00","Pranzo",189,26,3,8,"Tramezzino"]
[null,{"$f":"DataInizio+1","v":"2017-05-05"},"19:00:00","Cena",477,62,{"v":13.5,"d":"14"},21,"Cena"]
[null,{"$f":"DataInizio+2","v":"2017-05-06"},"07:00:00","Caffè",1,0,0,0,"Caffè del mattino"]
[null,{"$f":"DataInizio+2","v":"2017-05-06"},"08:00:00","Ciambella salata",245,48,10,{"v":1.5,"d":"2"},"Colazione leggera"]
[null,{"$f":"DataInizio+2","v":"2017-05-06"},"12:00:00","Pranzo",247,11,43,5,"Insalata"]
[null,{"$f":"DataInizio+2","v":"2017-05-06"},"19:00:00","Cena",456,64,32,22,"Cena"]
[null,{"$f":"DataInizio+3","v":"2017-05-07"},"07:00:00","Pane tostato",10,10,2,10,"Colazione leggera"]
[null,{"$f":"DataInizio+3","v":"2017-05-07"},"10:00:00","Caffè",135,{"v":12.36,"d":"12"},{"v":8.81,"d":"9"},{"v":5.51,"d":"6"},"Caffellatte"]
[null,{"$f":"DataInizio+3","v":"2017-05-07"},"12:15:00","Pranzo",184,7,{"v":5.43,"d":"5"},15,"Insalata"]
[null,{"$f":"DataInizio+5","v":"2017-05-09"},"19:00:00","Cena",477,62,{"v":13.5,"d":"14"},21,"Cena"]

{"sheet":"ESERCIZI","index":2,"n_rows":20,"n_cols":7,"rows_kept":20}
[null,"ESERCIZI",{"$nulls":3},"Dietaa","Obiettivi"]
[null,{"$f":"Sottotitolo","v":"DIARIO PER DIETA ED ESERCIZI"}]
[null,"DATA","DURATA (MIN.)","CALORIE BRUCIATE","NOTE"]
[null,{"$f":"DataInizio+4","v":"2017-05-08"},30,120,"Tapis roulant"]
[null,{"$f":"B4+1","v":"2017-05-09"},60,180,"Aerobica a basso impatto"]
[null,{"$f":"B5+1","v":"2017-05-10"},60,350,"Allenamento estremo"]
[null,"2017-05-11",30,150,"Tapis roulant"]
[null,"2017-05-12",25,125,"Corsa"]
[null,"2017-05-13",20,285,"Tapis roulant"]
[null,"2017-05-14",40,205,"Corsa"]
[null,"2017-05-15",30,335,"Corsa"]
[null,"2017-05-16",40,175,"Corsa"]
[null,"2017-05-17",45,325,"Tapis roulant"]
[null,"2017-05-18",40,270,"Corsa"]
[null,"2017-05-19",20,295,"Tapis roulant"]
[null,"2017-05-20",45,350,"Corsa"]
[null,"2017-05-21",35,320,"Corsa"]
[null,"2017-05-22",40,290,"Corsa"]
[null,{"$f":"B18+1","v":"2017-05-23"},25,265,"Tapis roulant"]
[null,"2017-05-24",20,195,"Corsa"]

{"sheet":"Calcoli grafico","index":3,"n_rows":36,"n_cols":10,"rows_kept":36,"hidden":true,"merged":[[1,1,1,9],[19,1,19,9]]}
[]
[null,"DATI PER IL GRAFICO DI ANALISI NUTRIZIONALE"]
[]
[null,"Riga iniziale",{"$f":"ROW(Dieta[[#Headers],[DATA]])+1","v":4},"DATA","GIORNO","GRASSI","PROTEINE","CARBOIDRATI","CALORIE","Num"]
[null,"Ultima voce dieta",{"$f":"MATCH(9.99E+307,Dieta[DATA])+InizioRigaDieta-1","v":19},{"$f":"IFERROR(IF(INDEX(Dieta[],FineUltimaDieta-InizioRigaDieta-J5,1)<>\"\",INDEX(Dieta[],FineUltimaDieta-InizioRigaDieta-J5,1),\"\"),\"\")","v":"2017-05-04"},{"$f":"UPPER(TEXT(D5,\"GGG\"))","v":"GIO"},{"$f":"IFERROR((IF(INDEX(Dieta[],FineUltimaDieta-InizioRigaDieta-J5,1)<>\"\",INDEX(Dieta[],FineUltimaDieta-InizioRigaDieta-J5,7),NA())),NA())","v":3.5},{"$f":"IFERROR((IF(INDEX(Dieta[],FineUltimaDieta-InizioRigaDieta-J5,1)<>\"\",INDEX(Dieta[],FineUltimaDieta-InizioRigaDieta-J5,6),NA())),NA())","v":18},{"$f":"IFERROR((IF(INDEX(Dieta[],FineUltimaDieta-InizioRigaDieta-J5,1)<>\"\",INDEX(Dieta[],FineUltimaDieta-InizioRigaDieta-J5,5),NA())),NA())","v":46},{"$f":"IFERROR((IF(INDEX(Dieta[],FineUltimaDieta-InizioRigaDieta-J5,1)<>\"\",INDEX(Dieta[],FineUltimaDieta-InizioRigaDieta-J5,4),NA())),NA())","v":283},12]
[{"$nulls":3},{"$f":"IFERROR(IF(INDEX(Dieta[],FineUltimaDieta-InizioRigaDieta-J6,1)<>\"\",INDEX(Dieta[],FineUltimaDieta-InizioRigaDieta-J6,1),\"\"),\"\")","v":"2017-05-04"},{"$f":"UPPER(TEXT(D6,\"GGG\"))","v":"GIO"},{"$f":"IFERROR((IF(INDEX(Dieta[],FineUltimaDieta-InizioRigaDieta-J6,1)<>\"\",INDEX(Dieta[],FineUltimaDieta-InizioRigaDieta-J6,7),NA())),NA())","v":25},{"$f":"IFERROR((IF(INDEX(Dieta[],FineUltimaDieta-InizioRigaDieta-J6,1)<>\"\",INDEX(Dieta[],FineUltimaDieta-InizioRigaDieta-J6,6),NA())),NA())","v":35},{"$f":"IFERROR((IF(INDEX(Dieta[],FineUltimaDieta-InizioRigaDieta-J6,1)<>\"\",INDEX(Dieta[],FineUltimaDieta-InizioRigaDieta-J6,5),NA())),NA())","v":42},{"$f":"IFERROR((IF(INDEX(Dieta[],FineUltimaDieta-InizioRigaDieta-J6,1)<>\"\",INDEX(Dieta[],FineUltimaDieta-InizioRigaDieta-J6,4),NA())),NA())","v":500},11]
[{"$nulls":3},{"$f":"IFERROR(IF(INDEX(Dieta[],FineUltimaDieta-InizioRigaDieta-J7,1)<>\"\",INDEX(Dieta[],FineUltimaDieta-InizioRigaDieta-J7,1),\"\"),\"\")","v":"2017-05-05"},"VEN",{"$f":"IFERROR((IF(INDEX(Dieta[],FineUltimaDieta-InizioRigaDieta-J7,1)<>\"\",INDEX(Dieta[],FineUltimaDieta-InizioRigaDieta-J7,7),NA())),NA())","v":0},{"$f":"IFERROR((IF(INDEX(Dieta[],FineUltimaDieta-InizioRigaDieta-J7,1)<>\"\",INDEX(Dieta[],FineUltimaDieta-InizioRigaDieta-J7,6),NA())),NA())","v":0},{"$f":"IFERROR((IF(INDEX(Dieta[],FineUltimaDieta-InizioRigaDieta-J7,1)<>\"\",INDEX(Dieta[],FineUltimaDieta-InizioRigaDieta-J7,5),NA())),NA())","v":0},{"$f":"IFERROR((IF(INDEX(Dieta[],FineUltimaDieta-InizioRigaDieta-J7,1)<>\"\",INDEX(Dieta[],FineUltimaDieta-InizioRigaDieta-J7,4),NA())),NA())","v":1},10]
[{"$nulls":3},{"$f":"IFERROR(IF(INDEX(Dieta[],FineUltimaDieta-InizioRigaDieta-J8,1)<>\"\",INDEX(Dieta[],FineUltimaDieta-InizioRigaDieta-J8,1),\"\"),\"\")","v":"2017-05-05"},"VEN",{"$f":"IFERROR((IF(INDEX(Dieta[],FineUltimaDieta-InizioRigaDieta-J8,1)<>\"\",INDEX(Dieta[],FineUltimaDieta-InizioRigaDieta-J8,7),NA())),NA())","v":10},{"$f":"IFERROR((IF(INDEX(Dieta[],FineUltimaDieta-InizioRigaDieta-J8,1)<>\"\",INDEX(Dieta[],FineUltimaDieta-InizioRigaDieta-J8,6),NA())),NA())","v":2},{"$f":"IFERROR((IF(INDEX(Dieta[],FineUltimaDieta-InizioRigaDieta-J8,1)<>\"\",INDEX(Dieta[],FineUltimaDieta-InizioRigaDieta-J8,5),NA())),NA())","v":10},{"$f":"IFERROR((IF(INDEX(Dieta[],FineUltimaDieta-InizioRigaDieta-J8,1)<>\"\",INDEX(Dieta[],FineUltimaDieta-InizioRigaDieta-J8,4),NA())),NA())","v":10},9]
[{"$nulls":3},{"$f":"IFERROR(IF(INDEX(Dieta[],FineUltimaDieta-InizioRigaDieta-J9,1)<>\"\",INDEX(Dieta[],FineUltimaDieta-InizioRigaDieta-J9,1),\"\"),\"\")","v":"2017-05-05"},"VEN",{"$f":"IFERROR((IF(INDEX(Dieta[],FineUltimaDieta-InizioRigaDieta-J9,1)<>\"\",INDEX(Dieta[],FineUltimaDieta-InizioRigaDieta-J9,7),NA())),NA())","v":8},{"$f":"IFERROR((IF(INDEX(Dieta[],FineUltimaDieta-InizioRigaDieta-J9,1)<>\"\",INDEX(Dieta[],FineUltimaDieta-InizioRigaDieta-J9,6),NA())),NA())","v":3},{"$f":"IFERROR((IF(INDEX(Dieta[],FineUltimaDieta-InizioRigaDieta-J9,1)<>\"\",INDEX(Dieta[],FineUltimaDieta-InizioRigaDieta-J9,5),NA())),NA())","v":26},{"$f":"IFERROR((IF(INDEX(Dieta[],FineUltimaDieta-InizioRigaDieta-J9,1)<>\"\",INDEX(Dieta[],FineUltimaDieta-InizioRigaDieta-J9,4),NA())),NA())","v":189},8]
[{"$nulls":3},{"$f":"IFERROR(IF(INDEX(Dieta[],FineUltimaDieta-InizioRigaDieta-J10,1)<>\"\",INDEX(Dieta[],FineUltimaDieta-InizioRigaDieta-J10,1),\"\"),\"\")","v":"2017-05-05"},"VEN",{"$f":"IFERROR((IF(INDEX(Dieta[],FineUltimaDieta-InizioRigaDieta-J10,1)<>\"\",INDEX(Dieta[],FineUltimaDieta-InizioRigaDieta-J10,7),NA())),NA())","v":21},{"$f":"IFERROR((IF(INDEX(Dieta[],FineUltimaDieta-InizioRigaDieta-J10,1)<>\"\",INDEX(Dieta[],FineUltimaDieta-InizioRigaDieta-J10,6),NA())),NA())","v":13.5},{"$f":"IFERROR((IF(INDEX(Dieta[],FineUltimaDieta-InizioRigaDieta-J10,1)<>\"\",INDEX(Dieta[],FineUltimaDieta-InizioRigaDieta-J10,5),NA())),NA())","v":62},{"$f":"IFERROR((IF(INDEX(Dieta[],FineUltimaDieta-InizioRigaDieta-J10,1)<>\"\",INDEX(Dieta[],FineUltimaDieta-InizioRigaDieta-J10,4),NA())),NA())","v":477},7]
[{"$nulls":3},{"$f":"IFERROR(IF(INDEX(Dieta[],FineUltimaDieta-InizioRigaDieta-J11,1)<>\"\",INDEX(Dieta[],FineUltimaDieta-InizioRigaDieta-J11,1),\"\"),\"\")","v":"2017-05-06"},"SAB",{"$f":"IFERROR((IF(INDEX(Dieta[],FineUltimaDieta-InizioRigaDieta-J11,1)<>\"\",INDEX(Dieta[],FineUltimaDieta-InizioRigaDieta-J11,7),NA())),NA())","v":0},{"$f":"IFERROR((IF(INDEX(Dieta[],FineUltimaDieta-InizioRigaDieta-J11,1)<>\"\",INDEX(Dieta[],FineUltimaDieta-InizioRigaDieta-J11,6),NA())),NA())","v":0},{"$f":"IFERROR((IF(INDEX(Dieta[],FineUltimaDieta-InizioRigaDieta-J11,1)<>\"\",INDEX(Dieta[],FineUltimaDieta-InizioRigaDieta-J11,5),NA())),NA())","v":0},{"$f":"IFERROR((IF(INDEX(Dieta[],FineUltimaDieta-InizioRigaDieta-J11,1)<>\"\",INDEX(Dieta[],FineUltimaDieta-InizioRigaDieta-J11,4),NA())),NA())","v":1},6]
[{"$nulls":3},{"$f":"IFERROR(IF(INDEX(Dieta[],FineUltimaDieta-InizioRigaDieta-J12,1)<>\"\",INDEX(Dieta[],FineUltimaDieta-InizioRigaDieta-J12,1),\"\"),\"\")","v":"2017-05-06"},"SAB",{"$f":"IFERROR((IF(INDEX(Dieta[],FineUltimaDieta-InizioRigaDieta-J12,1)<>\"\",INDEX(Dieta[],FineUltimaDieta-InizioRigaDieta-J12,7),NA())),NA())","v":1.5},{"$f":"IFERROR((IF(INDEX(Dieta[],FineUltimaDieta-InizioRigaDieta-J12,1)<>\"\",INDEX(Dieta[],FineUltimaDieta-InizioRigaDieta-J12,6),NA())),NA())","v":10},{"$f":"IFERROR((IF(INDEX(Dieta[],FineUltimaDieta-InizioRigaDieta-J12,1)<>\"\",INDEX(Dieta[],FineUltimaDieta-InizioRigaDieta-J12,5),NA())),NA())","v":48},{"$f":"IFERROR((IF(INDEX(Dieta[],FineUltimaDieta-InizioRigaDieta-J12,1)<>\"\",INDEX(Dieta[],FineUltimaDieta-InizioRigaDieta-J12,4),NA())),NA())","v":245},5]
[{"$nulls":3},{"$f":"IFERROR(IF(INDEX(Dieta[],FineUltimaDieta-InizioRigaDieta-J13,1)<>\"\",INDEX(Dieta[],FineUltimaDieta-InizioRigaDieta-J13,1),\"\"),\"\")","v":"2017-05-06"},"SAB",{"$f":"IFERROR((IF(INDEX(Dieta[],FineUltimaDieta-InizioRigaDieta-J13,1)<>\"\",INDEX(Dieta[],FineUltimaDieta-InizioRigaDieta-J13,7),NA())),NA())","v":5},{"$f":"IFERROR((IF(INDEX(Dieta[],FineUltimaDieta-InizioRigaDieta-J13,1)<>\"\",INDEX(Dieta[],FineUltimaDieta-InizioRigaDieta-J13,6),NA())),NA())","v":43},{"$f":"IFERROR((IF(INDEX(Dieta[],FineUltimaDieta-InizioRigaDieta-J13,1)<>\"\",INDEX(Dieta[],FineUltimaDieta-InizioRigaDieta-J13,5),NA())),NA())","v":11},{"$f":"IFERROR((IF(INDEX(Dieta[],FineUltimaDieta-InizioRigaDieta-J13,1)<>\"\",INDEX(Dieta[],FineUltimaDieta-InizioRigaDieta-J13,4),NA())),NA())","v":247},4]
[{"$nulls":3},{"$f":"IFERROR(IF(INDEX(Dieta[],FineUltimaDieta-InizioRigaDieta-J14,1)<>\"\",INDEX(Dieta[],FineUltimaDieta-InizioRigaDieta-J14,1),\"\"),\"\")","v":"2017-05-06"},"SAB",{"$f":"IFERROR((IF(INDEX(Dieta[],FineUltimaDieta-InizioRigaDieta-J14,1)<>\"\",INDEX(Dieta[],FineUltimaDieta-InizioRigaDieta-J14,7),NA())),NA())","v":22},{"$f":"IFERROR((IF(INDEX(Dieta[],FineUltimaDieta-InizioRigaDieta-J14,1)<>\"\",INDEX(Dieta[],FineUltimaDieta-InizioRigaDieta-J14,6),NA())),NA())","v":32},{"$f":"IFERROR((IF(INDEX(Dieta[],FineUltimaDieta-InizioRigaDieta-J14,1)<>\"\",INDEX(Dieta[],FineUltimaDieta-InizioRigaDieta-J14,5),NA())),NA())","v":64},{"$f":"IFERROR((IF(INDEX(Dieta[],FineUltimaDieta-InizioRigaDieta-J14,1)<>\"\",INDEX(Dieta[],FineUltimaDieta-InizioRigaDieta-J14,4),NA())),NA())","v":456},3]
[{"$nulls":3},{"$f":"IFERROR(IF(INDEX(Dieta[],FineUltimaDieta-InizioRigaDieta-J15,1)<>\"\",INDEX(Dieta[],FineUltimaDieta-InizioRigaDieta-J15,1),\"\"),\"\")","v":"2017-05-07"},"DOM",{"$f":"IFERROR((IF(INDEX(Dieta[],FineUltimaDieta-InizioRigaDieta-J15,1)<>\"\",INDEX(Dieta[],FineUltimaDieta-InizioRigaDieta-J15,7),NA())),NA())","v":10},{"$f":"IFERROR((IF(INDEX(Dieta[],FineUltimaDieta-InizioRigaDieta-J15,1)<>\"\",INDEX(Dieta[],FineUltimaDieta-InizioRigaDieta-J15,6),NA())),NA())","v":2},{"$f":"IFERROR((IF(INDEX(Dieta[],FineUltimaDieta-InizioRigaDieta-J15,1)<>\"\",INDEX(Dieta[],FineUltimaDieta-InizioRigaDieta-J15,5),NA())),NA())","v":10},{"$f":"IFERROR((IF(INDEX(Dieta[],FineUltimaDieta-InizioRigaDieta-J15,1)<>\"\",INDEX(Dieta[],FineUltimaDieta-InizioRigaDieta-J15,4),NA())),NA())","v":10},2]
[{"$nulls":3},{"$f":"IFERROR(IF(INDEX(Dieta[],FineUltimaDieta-InizioRigaDieta-J16,1)<>\"\",INDEX(Dieta[],FineUltimaDieta-InizioRigaDieta-J16,1),\"\"),\"\")","v":"2017-05-07"},"DOM",{"$f":"IFERROR((IF(INDEX(Dieta[],FineUltimaDieta-InizioRigaDieta-J16,1)<>\"\",INDEX(Dieta[],FineUltimaDieta-InizioRigaDieta-J16,7),NA())),NA())","v":5.51},{"$f":"IFERROR((IF(INDEX(Dieta[],FineUltimaDieta-InizioRigaDieta-J16,1)<>\"\",INDEX(Dieta[],FineUltimaDieta-InizioRigaDieta-J16,6),NA())),NA())","v":8.81},{"$f":"IFERROR((IF(INDEX(Dieta[],FineUltimaDieta-InizioRigaDieta-J16,1)<>\"\",INDEX(Dieta[],FineUltimaDieta-InizioRigaDieta-J16,5),NA())),NA())","v":12.36},{"$f":"IFERROR((IF(INDEX(Dieta[],FineUltimaDieta-InizioRigaDieta-J16,1)<>\"\",INDEX(Dieta[],FineUltimaDieta-InizioRigaDieta-J16,4),NA())),NA())","v":135},1]
[{"$nulls":3},{"$f":"IFERROR(IF(INDEX(Dieta[],FineUltimaDieta-InizioRigaDieta-J17,1)<>\"\",INDEX(Dieta[],FineUltimaDieta-InizioRigaDieta-J17,1),\"\"),\"\")","v":"2017-05-07"},"DOM",{"$f":"IFERROR((IF(INDEX(Dieta[],FineUltimaDieta-InizioRigaDieta-J17,1)<>\"\",INDEX(Dieta[],FineUltimaDieta-InizioRigaDieta-J17,7),NA())),NA())","v":15},{"$f":"IFERROR((IF(INDEX(Dieta[],FineUltimaDieta-InizioRigaDieta-J17,1)<>\"\",INDEX(Dieta[],FineUltimaDieta-InizioRigaDieta-J17,6),NA())),NA())","v":5.43},{"$f":"IFERROR((IF(INDEX(Dieta[],FineUltimaDieta-InizioRigaDieta-J17,1)<>\"\",INDEX(Dieta[],FineUltimaDieta-InizioRigaDieta-J17,5),NA())),NA())","v":7},{"$f":"IFERROR((IF(INDEX(Dieta[],FineUltimaDieta-InizioRigaDieta-J17,1)<>\"\",INDEX(Dieta[],FineUltimaDieta-InizioRigaDieta-J17,4),NA())),NA())","v":184},0]
[{"$nulls":3},{"$f":"IFERROR(IF(INDEX(Dieta[],FineUltimaDieta-InizioRigaDieta-J18,1)<>\"\",INDEX(Dieta[],FineUltimaDieta-InizioRigaDieta-J18,1),\"\"),\"\")","v":"2017-05-09"},"MAR",{"$f":"IFERROR((IF(INDEX(Dieta[],FineUltimaDieta-InizioRigaDieta-J18,1)<>\"\",INDEX(Dieta[],FineUltimaDieta-InizioRigaDieta-J18,7),NA())),NA())","v":21},{"$f":"IFERROR((IF(INDEX(Dieta[],FineUltimaDieta-InizioRigaDieta-J18,1)<>\"\",INDEX(Dieta[],FineUltimaDieta-InizioRigaDieta-J18,6),NA())),NA())","v":13.5},{"$f":"IFERROR((IF(INDEX(Dieta[],FineUltimaDieta-InizioRigaDieta-J18,1)<>\"\",INDEX(Dieta[],FineUltimaDieta-InizioRigaDieta-J18,5),NA())),NA())","v":62},{"$f":"IFERROR((IF(INDEX(Dieta[],FineUltimaDieta-InizioRigaDieta-J18,1)<>\"\",INDEX(Dieta[],FineUltimaDieta-InizioRigaDieta-J18,4),NA())),NA())","v":477},-1]
[]
[null,"DATI PER IL GRAFICO DI ANALISI DEGLI ESERCIZI"]
[]
[null,"Riga iniziale",{"$f":"ROW(Esercizi[[#Headers],[DATA]])+1","v":4},"DATA","GIORNO","DURATA (MIN.)","CALORIE BRUCIATE","Num"]
[null,"Ultima voce esercizi",{"$f":"MATCH(9.99E+307,Esercizi[DATA])+InizioRigaEsercizi-1","v":20},{"$f":"IFERROR(IF(INDEX(Esercizi[],FineUltimoEsercizio-InizioRigaEsercizi-H23,1)<>\"\",INDEX(Esercizi[],FineUltimoEsercizio-InizioRigaEsercizi-H23,1)),\"\")","v":"2017-05-24"},{"$f":"UPPER(TEXT(D23,\"GGG\"))","v":"MER"},{"$f":"IFERROR((IF(INDEX(Esercizi[],FineUltimoEsercizio-InizioRigaEsercizi-H23,1)<>\"\",INDEX(Esercizi[],FineUltimoEsercizio-InizioRigaEsercizi-H23,2),0)),0)","v":20},{"$f":"IFERROR((IF(INDEX(Esercizi[],FineUltimoEsercizio-InizioRigaEsercizi-H23,2)<>\"\",INDEX(Esercizi[],FineUltimoEsercizio-InizioRigaEsercizi-H23,3),0)),0)","v":195},-1]
[{"$nulls":3},{"$f":"IFERROR(IF(INDEX(Esercizi[],FineUltimoEsercizio-InizioRigaEsercizi-H24,1)<>\"\",INDEX(Esercizi[],FineUltimoEsercizio-InizioRigaEsercizi-H24,1)),\"\")","v":"2017-05-23"},{"$f":"UPPER(TEXT(D24,\"GGG\"))","v":"MAR"},{"$f":"IFERROR((IF(INDEX(Esercizi[],FineUltimoEsercizio-InizioRigaEsercizi-H24,1)<>\"\",INDEX(Esercizi[],FineUltimoEsercizio-InizioRigaEsercizi-H24,2),0)),0)","v":25},{"$f":"IFERROR((IF(INDEX(Esercizi[],FineUltimoEsercizio-InizioRigaEsercizi-H24,2)<>\"\",INDEX(Esercizi[],FineUltimoEsercizio-InizioRigaEsercizi-H24,3),0)),0)","v":265},0]
[{"$nulls":3},{"$f":"IFERROR(IF(INDEX(Esercizi[],FineUltimoEsercizio-InizioRigaEsercizi-H25,1)<>\"\",INDEX(Esercizi[],FineUltimoEsercizio-InizioRigaEsercizi-H25,1)),\"\")","v":"2017-05-22"},"LUN",{"$f":"IFERROR((IF(INDEX(Esercizi[],FineUltimoEsercizio-InizioRigaEsercizi-H25,1)<>\"\",INDEX(Esercizi[],FineUltimoEsercizio-InizioRigaEsercizi-H25,2),0)),0)","v":40},{"$f":"IFERROR((IF(INDEX(Esercizi[],FineUltimoEsercizio-InizioRigaEsercizi-H25,2)<>\"\",INDEX(Esercizi[],FineUltimoEsercizio-InizioRigaEsercizi-H25,3),0)),0)","v":290},1]
[{"$nulls":3},{"$f":"IFERROR(IF(INDEX(Esercizi[],FineUltimoEsercizio-InizioRigaEsercizi-H26,1)<>\"\",INDEX(Esercizi[],FineUltimoEsercizio-InizioRigaEsercizi-H26,1)),\"\")","v":"2017-05-21"},"DOM",{"$f":"IFERROR((IF(INDEX(Esercizi[],FineUltimoEsercizio-InizioRigaEsercizi-H26,1)<>\"\",INDEX(Esercizi[],FineUltimoEsercizio-InizioRigaEsercizi-H26,2),0)),0)","v":35},{"$f":"IFERROR((IF(INDEX(Esercizi[],FineUltimoEsercizio-InizioRigaEsercizi-H26,2)<>\"\",INDEX(Esercizi[],FineUltimoEsercizio-InizioRigaEsercizi-H26,3),0)),0)","v":320},2]
[{"$nulls":3},{"$f":"IFERROR(IF(INDEX(Esercizi[],FineUltimoEsercizio-InizioRigaEsercizi-H27,1)<>\"\",INDEX(Esercizi[],FineUltimoEsercizio-InizioRigaEsercizi-H27,1)),\"\")","v":"2017-05-20"},"SAB",{"$f":"IFERROR((IF(INDEX(Esercizi[],FineUltimoEsercizio-InizioRigaEsercizi-H27,1)<>\"\",INDEX(Esercizi[],FineUltimoEsercizio-InizioRigaEsercizi-H27,2),0)),0)","v":45},{"$f":"IFERROR((IF(INDEX(Esercizi[],FineUltimoEsercizio-InizioRigaEsercizi-H27,2)<>\"\",INDEX(Esercizi[],FineUltimoEsercizio-InizioRigaEsercizi-H27,3),0)),0)","v":350},3]
[{"$nulls":3},{"$f":"IFERROR(IF(INDEX(Esercizi[],FineUltimoEsercizio-InizioRigaEsercizi-H28,1)<>\"\",INDEX(Esercizi[],FineUltimoEsercizio-InizioRigaEsercizi-H28,1)),\"\")","v":"2017-05-19"},"VEN",{"$f":"IFERROR((IF(INDEX(Esercizi[],FineUltimoEsercizio-InizioRigaEsercizi-H28,1)<>\"\",INDEX(Esercizi[],FineUltimoEsercizio-InizioRigaEsercizi-H28,2),0)),0)","v":20},{"$f":"IFERROR((IF(INDEX(Esercizi[],FineUltimoEsercizio-InizioRigaEsercizi-H28,2)<>\"\",INDEX(Esercizi[],FineUltimoEsercizio-InizioRigaEsercizi-H28,3),0)),0)","v":295},4]
[{"$nulls":3},{"$f":"IFERROR(IF(INDEX(Esercizi[],FineUltimoEsercizio-InizioRigaEsercizi-H29,1)<>\"\",INDEX(Esercizi[],FineUltimoEsercizio-InizioRigaEsercizi-H29,1)),\"\")","v":"2017-05-18"},"GIO",{"$f":"IFERROR((IF(INDEX(Esercizi[],FineUltimoEsercizio-InizioRigaEsercizi-H29,1)<>\"\",INDEX(Esercizi[],FineUltimoEsercizio-InizioRigaEsercizi-H29,2),0)),0)","v":40},{"$f":"IFERROR((IF(INDEX(Esercizi[],FineUltimoEsercizio-InizioRigaEsercizi-H29,2)<>\"\",INDEX(Esercizi[],FineUltimoEsercizio-InizioRigaEsercizi-H29,3),0)),0)","v":270},5]
[{"$nulls":3},{"$f":"IFERROR(IF(INDEX(Esercizi[],FineUltimoEsercizio-InizioRigaEsercizi-H30,1)<>\"\",INDEX(Esercizi[],FineUltimoEsercizio-InizioRigaEsercizi-H30,1)),\"\")","v":"2017-05-17"},"MER",{"$f":"IFERROR((IF(INDEX(Esercizi[],FineUltimoEsercizio-InizioRigaEsercizi-H30,1)<>\"\",INDEX(Esercizi[],FineUltimoEsercizio-InizioRigaEsercizi-H30,2),0)),0)","v":45},{"$f":"IFERROR((IF(INDEX(Esercizi[],FineUltimoEsercizio-InizioRigaEsercizi-H30,2)<>\"\",INDEX(Esercizi[],FineUltimoEsercizio-InizioRigaEsercizi-H30,3),0)),0)","v":325},6]
[{"$nulls":3},{"$f":"IFERROR(IF(INDEX(Esercizi[],FineUltimoEsercizio-InizioRigaEsercizi-H31,1)<>\"\",INDEX(Esercizi[],FineUltimoEsercizio-InizioRigaEsercizi-H31,1)),\"\")","v":"2017-05-16"},"MAR",{"$f":"IFERROR((IF(INDEX(Esercizi[],FineUltimoEsercizio-InizioRigaEsercizi-H31,1)<>\"\",INDEX(Esercizi[],FineUltimoEsercizio-InizioRigaEsercizi-H31,2),0)),0)","v":40},{"$f":"IFERROR((IF(INDEX(Esercizi[],FineUltimoEsercizio-InizioRigaEsercizi-H31,2)<>\"\",INDEX(Esercizi[],FineUltimoEsercizio-InizioRigaEsercizi-H31,3),0)),0)","v":175},7]
[{"$nulls":3},{"$f":"IFERROR(IF(INDEX(Esercizi[],FineUltimoEsercizio-InizioRigaEsercizi-H32,1)<>\"\",INDEX(Esercizi[],FineUltimoEsercizio-InizioRigaEsercizi-H32,1)),\"\")","v":"2017-05-15"},"LUN",{"$f":"IFERROR((IF(INDEX(Esercizi[],FineUltimoEsercizio-InizioRigaEsercizi-H32,1)<>\"\",INDEX(Esercizi[],FineUltimoEsercizio-InizioRigaEsercizi-H32,2),0)),0)","v":30},{"$f":"IFERROR((IF(INDEX(Esercizi[],FineUltimoEsercizio-InizioRigaEsercizi-H32,2)<>\"\",INDEX(Esercizi[],FineUltimoEsercizio-InizioRigaEsercizi-H32,3),0)),0)","v":335},8]
[{"$nulls":3},{"$f":"IFERROR(IF(INDEX(Esercizi[],FineUltimoEsercizio-InizioRigaEsercizi-H33,1)<>\"\",INDEX(Esercizi[],FineUltimoEsercizio-InizioRigaEsercizi-H33,1)),\"\")","v":"2017-05-14"},"DOM",{"$f":"IFERROR((IF(INDEX(Esercizi[],FineUltimoEsercizio-InizioRigaEsercizi-H33,1)<>\"\",INDEX(Esercizi[],FineUltimoEsercizio-InizioRigaEsercizi-H33,2),0)),0)","v":40},{"$f":"IFERROR((IF(INDEX(Esercizi[],FineUltimoEsercizio-InizioRigaEsercizi-H33,2)<>\"\",INDEX(Esercizi[],FineUltimoEsercizio-InizioRigaEsercizi-H33,3),0)),0)","v":205},9]
[{"$nulls":3},{"$f":"IFERROR(IF(INDEX(Esercizi[],FineUltimoEsercizio-InizioRigaEsercizi-H34,1)<>\"\",INDEX(Esercizi[],FineUltimoEsercizio-InizioRigaEsercizi-H34,1)),\"\")","v":"2017-05-13"},"SAB",{"$f":"IFERROR((IF(INDEX(Esercizi[],FineUltimoEsercizio-InizioRigaEsercizi-H34,1)<>\"\",INDEX(Esercizi[],FineUltimoEsercizio-InizioRigaEsercizi-H34,2),0)),0)","v":20},{"$f":"IFERROR((IF(INDEX(Esercizi[],FineUltimoEsercizio-InizioRigaEsercizi-H34,2)<>\"\",INDEX(Esercizi[],FineUltimoEsercizio-InizioRigaEsercizi-H34,3),0)),0)","v":285},10]
[{"$nulls":3},{"$f":"IFERROR(IF(INDEX(Esercizi[],FineUltimoEsercizio-InizioRigaEsercizi-H35,1)<>\"\",INDEX(Esercizi[],FineUltimoEsercizio-InizioRigaEsercizi-H35,1)),\"\")","v":"2017-05-12"},"VEN",{"$f":"IFERROR((IF(INDEX(Esercizi[],FineUltimoEsercizio-InizioRigaEsercizi-H35,1)<>\"\",INDEX(Esercizi[],FineUltimoEsercizio-InizioRigaEsercizi-H35,2),0)),0)","v":25},{"$f":"IFERROR((IF(INDEX(Esercizi[],FineUltimoEsercizio-InizioRigaEsercizi-H35,2)<>\"\",INDEX(Esercizi[],FineUltimoEsercizio-InizioRigaEsercizi-H35,3),0)),0)","v":125},11]
[{"$nulls":3},{"$f":"IFERROR(IF(INDEX(Esercizi[],FineUltimoEsercizio-InizioRigaEsercizi-H36,1)<>\"\",INDEX(Esercizi[],FineUltimoEsercizio-InizioRigaEsercizi-H36,1)),\"\")","v":"2017-05-11"},"GIO",{"$f":"IFERROR((IF(INDEX(Esercizi[],FineUltimoEsercizio-InizioRigaEsercizi-H36,1)<>\"\",INDEX(Esercizi[],FineUltimoEsercizio-InizioRigaEsercizi-H36,2),0)),0)","v":30},{"$f":"IFERROR((IF(INDEX(Esercizi[],FineUltimoEsercizio-InizioRigaEsercizi-H36,2)<>\"\",INDEX(Esercizi[],FineUltimoEsercizio-InizioRigaEsercizi-H36,3),0)),0)","v":150},12]